bitfinex-derivatives/quotes_BNBF0:USTF0_20250116
["timestamp","ask_amount","ask_price","bid_price","bid_amount"]
[1737067200445,0.28211928,708.92,707.71,1.05361088]
[1737067200639,0.28211928,708.92,707.72,0.25947336]
[1737067200840,0.28211928,708.92,707.76,1.05361088]
[1737067201242,0.28211928,708.92,707.77,0.25944477]
[1737067201944,0.28211928,708.92,707.93,1.05361088]
[1737067202945,0.28211928,708.92,707.91,1.05361088]
[1737067204243,0.28211928,708.92,707.32,0.7570858]
[1737067204244,0.28211928,708.92,707.88,1.05361088]
[1737067205049,0.28211928,708.92,707.89,0.25943589]
[1737067205248,0.28211928,708.92,707.88,1.05361088]
[1737067205449,0.28211928,708.92,707.89,0.25943873]
[1737067205643,0.28211928,708.92,707.84,1.05361088]
[1737067205841,0.28211928,708.92,707.85,0.25943839]
[1737067206450,0.28211928,708.92,707.86,0.25943804]
[1737067206649,0.28211928,708.92,707.87,0.25943804]
[1737067206849,0.28211928,708.92,707.88,0.25943804]
[1737067207044,0.28211928,708.92,707.89,0.25943497]
[1737067207242,0.28211928,708.92,707.9,0.25943497]
[1737067207451,0.28211928,708.92,707.81,1.05361088]
[1737067207650,0.28211928,708.92,707.82,0.25943497]
[1737067208552,0.28211928,708.92,707.83,0.25943497]
[1737067208753,0.28211928,708.92,707.84,0.25943497]
[1737067208948,0.28211928,708.92,707.85,0.25943497]
[1737067209252,0.28211928,708.92,707.86,0.25943301]
[1737067209454,0.28211928,708.92,707.87,0.25943301]
[1737067209650,0.28211928,708.92,707.88,0.25943301]
[1737067209845,0.28211928,708.92,707.77,1.05361088]
[1737067210059,0.28211928,708.92,707.78,0.25943481]
[1737067210852,0.28211928,708.92,707.79,0.25943481]
[1737067211051,0.28211928,708.92,707.8,0.25943481]
[1737067211248,0.28211928,708.92,707.81,0.25943481]
[1737067211451,0.28211928,708.92,707.82,0.25943481]
[1737067211751,0.28211928,708.92,707.83,0.25943481]
[1737067211951,0.28211928,708.92,707.84,0.25943345]
[1737067212146,0.28211928,708.92,707.85,0.25943345]
[1737067212352,0.28211928,708.92,707.86,0.25943345]
[1737067212554,0.28211928,708.92,707.76,1.05361088]
[1737067212555,0.28211928,708.92,707.87,0.25943345]
[1737067212852,0.28211928,708.92,707.22,1.26433305]
[1737067212853,0.28211928,708.92,707.88,0.25943345]
[1737067213053,0.28211928,708.92,707.89,0.25943345]
[1737067213253,0.28211928,708.92,707.9,0.25943345]
[1737067213454,0.28211928,708.92,707.91,0.25943345]
[1737067213654,0.28211928,708.92,707.77,1.05361088]
[1737067213655,0.28211928,708.92,707.92,0.25943345]
[1737067213854,0.28211928,708.92,707.93,0.25943345]
[1737067214053,0.28211928,708.92,707.94,0.25943345]
[1737067214249,0.28211928,708.92,707.77,1.05361088]
[1737067214453,0.28211928,708.92,707.78,0.25942281]
[1737067214654,0.28211928,708.92,707.81,1.05361088]
[1737067214961,0.28211928,708.92,707.82,0.25942266]
[1737067215355,0.28211928,708.92,707.81,1.05361088]
[1737067215597,0.28211928,708.92,707.82,0.25942807]
[1737067216354,0.28211928,708.92,707.83,0.25942807]
[1737067216555,0.28211928,708.92,707.75,1.05361088]
[1737067216754,0.28211928,708.92,707.76,0.2594194]
[1737067216955,0.28211928,708.92,707.77,0.2594185]
[1737067217155,0.28211928,708.92,707.78,0.2594185]
[1737067217356,0.28211928,708.92,707.79,0.2594185]
[1737067217553,0.28211928,708.92,707.8,0.25942106]
[1737067217859,0.28211928,708.92,707.81,0.25942106]
[1737067218159,0.28211928,708.92,707.82,0.25942106]
[1737067218353,0.28211928,708.92,707.83,0.25942106]
[1737067218559,0.28211928,708.92,707.73,1.05361088]
[1737067218755,0.28211928,708.92,707.74,1.05361088]
[1737067219460,0.28211928,708.92,707.66,1.05361088]
[1737067219656,0.28211928,708.92,707.67,0.2826176]
[1737067223861,0.28211928,708.92,707.68,0.2594456]
[1737067224060,0.28211928,708.92,707.69,0.28260961]
[1737067224255,0.28211928,708.92,707.7,0.2594456]
[1737067224859,0.28211928,708.92,707.72,1.05361088]
[1737067225160,0.28211928,708.92,707.73,0.2594456]
[1737067225863,0.28211928,708.92,707.72,1.05361088]
[1737067226162,0.28211928,708.92,707.87,1.05361088]
[1737067226362,0.28211928,708.92,707.88,0.25944524]
[1737067226762,0.28211928,708.92,707.88,1.31305612]
[1737067226962,0.28211928,708.92,707.89,0.25944524]
[1737067227562,0.28211928,708.92,707.89,1.31305612]
[1737067227865,0.28211928,708.92,707.9,0.25944524]
[1737067228762,0.28211928,708.92,707.91,1.3130508]
[1737067228959,0.28211928,708.92,707.92,0.25943992]
[1737067229661,0.28211928,708.92,707.94,1.05361088]
[1737067231359,0.28211928,708.92,707.96,1.05361088]
[1737067232365,0.28211928,708.92,707.99,1.05361088]
[1737067232965,0.28211928,708.92,708.0,1.05361088]
[1737067233662,0.28211928,708.92,708.04,1.05361088]
[1737067234964,0.28211928,708.92,707.99,1.05361088]
[1737067235866,0.28211928,708.92,708.06,1.05361088]
[1737067239566,0.28211928,708.92,708.07,1.05361088]
[1737067240967,0.28211928,708.92,708.08,1.05361088]
[1737067242665,0.28211928,708.92,708.09,1.05361088]
[1737067243868,0.28211928,708.92,708.1,1.05361088]
[1737067244872,0.28211928,708.92,708.15,1.05361088]
[1737067245871,0.28211928,708.92,708.03,1.05361088]
[1737067246871,0.28211928,708.92,708.01,1.05361088]
[1737067247970,0.28211928,708.92,708.0,1.05361088]
[1737067248573,1.0413802,709.85,708.0,1.05361088]
[1737067248773,0.2817576,709.83,707.99,1.05361088]
[1737067249767,0.2817576,709.83,707.95,1.05361088]
[1737067250574,0.2817576,709.83,707.94,1.05361088]
[1737067251569,0.2817576,709.83,707.95,1.05361088]
[1737067253877,0.2817576,709.83,707.96,1.05361088]
[1737067254978,0.2817576,709.83,707.94,1.05361088]
[1737067255976,1.0413802,709.82,708.01,1.05361088]
[1737067256172,0.28176951,709.8,708.01,1.05361088]
[1737067256572,0.28176951,709.8,708.04,1.05361088]
[1737067256573,1.0413802,709.77,708.04,1.05361088]
[1737067256777,0.28178936,709.75,708.04,1.05361088]
[1737067259580,1.0413802,709.74,708.07,1.05361088]
[1737067259775,0.28180127,709.72,708.07,1.05361088]
[1737067260580,0.28180127,709.72,708.11,1.05361088]
[1737067262085,0.28180127,709.72,708.12,1.05361088]
[1737067262784,0.28180127,709.72,708.1,1.05361088]
[1737067265079,0.28180127,709.72,708.09,1.05361088]
[1737067266084,0.28180127,709.72,707.72,1.81174696]
[1737067266085,0.28180127,709.72,708.11,1.05361088]
[1737067266680,0.28180127,709.72,708.1,1.05361088]
[1737067268280,0.28180127,709.72,708.11,1.05361088]
[1737067269887,1.0413802,709.65,708.16,1.05361088]
[1737067270187,0.28183701,709.63,708.16,1.05361088]
[1737067270880,1.32321721,709.63,708.18,1.05361088]
[1737067271879,1.0413802,709.61,708.17,1.05361088]
[1737067272083,0.2818529,709.59,708.17,1.05361088]
[1737067272882,1.0413802,709.57,708.21,1.05361088]
[1737067273090,0.28186879,709.55,708.21,1.05361088]
[1737067274691,0.28186879,709.55,708.23,1.05361088]
[1737067275591,0.28186879,709.55,708.26,1.05361088]
[1737067275592,1.32324899,709.55,708.26,1.05361088]
[1737067277092,1.0413802,709.54,708.25,1.05361088]
[1737067277693,0.2818807,709.52,708.25,1.05361088]
[1737067279297,0.2818807,709.52,708.21,1.05361088]
[1737067280393,1.3232609,709.52,708.19,1.05361088]
[1737067282497,1.3232609,709.52,707.72,0.75813608]
[1737067282498,1.0413802,709.51,708.18,1.05361088]
[1737067283597,0.2818807,709.52,708.1,1.05361088]
[1737067285593,0.2818807,709.52,708.11,1.05361088]
[1737067286191,0.2818807,709.52,708.12,1.05361088]
[1737067287098,0.2818807,709.52,708.11,1.05361088]
[1737067289499,0.2818807,709.52,708.14,1.05361088]
[1737067290296,0.2818807,709.52,708.15,1.05361088]
[1737067291107,1.0413802,709.46,708.22,1.05361088]
[1737067291901,0.2818807,709.52,707.94,1.05361088]
[1737067292806,0.2818807,709.52,707.5,1.05361088]
[1737067292807,1.0413802,709.49,707.89,1.05361088]
[1737067293403,0.28190057,709.47,707.89,1.05361088]
[1737067294108,1.0413802,709.31,707.9,1.05361088]
[1737067295202,1.0413802,709.31,707.29,2.15112221]
[1737067295203,0.28190057,709.47,707.69,1.05361088]
[1737067296406,1.32328077,709.47,707.61,1.05361088]
[1737067297305,0.28190057,709.47,707.57,1.05361088]
[1737067298712,0.28190057,709.47,707.45,1.05361088]
[1737067299409,0.28190057,709.47,707.44,1.05361088]
[1737067300409,0.28190057,709.47,707.42,1.05361088]
[1737067301611,0.28190057,709.47,707.41,1.05361088]
[1737067302611,0.28190057,709.47,707.4,1.05361088]
[1737067303713,0.28190057,709.47,707.39,1.05361088]
[1737067304413,0.28190057,709.47,707.41,1.05361088]
[1737067306714,0.28190057,709.47,707.4,1.05361088]
[1737067307711,0.28190057,709.47,707.41,1.05361088]
[1737067308715,0.28190057,709.47,707.54,1.05361088]
[1737067309617,0.28190057,709.47,707.55,1.05361088]
[1737067310716,0.28190057,709.47,707.32,1.05361088]
[1737067310717,0.28190057,709.47,707.54,1.05361088]
[1737067311718,0.28190057,709.47,707.53,1.05361088]
[1737067312518,0.28190057,709.47,707.54,1.05361088]
[1737067314514,0.28190057,709.47,707.32,1.05361088]
[1737067314515,1.32328077,709.47,707.57,1.05361088]
[1737067315722,0.28190057,709.47,707.51,1.05361088]
[1737067316524,0.28190057,709.47,707.53,1.05361088]
[1737067317417,0.28190057,709.47,707.54,1.05361088]
[1737067318025,0.28190057,709.47,707.53,1.05361088]
[1737067319120,0.28190057,709.47,707.54,1.05361088]
[1737067319924,0.28190057,709.47,707.56,1.05361088]
[1737067321129,0.28190057,709.47,707.54,1.05361088]
[1737067321328,0.28190057,709.47,707.55,0.25953666]
[1737067322226,1.0413802,709.42,707.55,1.31314754]
[1737067322430,0.28192839,709.4,707.56,0.25953837]
[1737067322932,1.32330859,709.4,707.58,1.05361088]
[1737067323633,1.32330859,709.4,707.56,1.05361088]
[1737067323634,0.28192839,709.4,707.56,1.05361088]
[1737067324033,0.28192839,709.4,707.57,0.25954149]
[1737067324631,1.0413802,709.38,707.59,1.05361088]
[1737067324836,0.28194428,709.36,707.6,0.25954149]
[1737067325535,1.0413802,709.22,707.7,1.05361088]
[1737067325736,0.28200789,709.2,707.7,1.05361088]
[1737067326435,0.28200789,709.2,705.39,1.716638]
[1737067326436,1.0413802,709.14,707.77,1.05361088]
[1737067326633,0.28203971,709.12,707.77,1.05361088]
[1737067327727,1.0413802,709.09,707.79,1.05361088]
[1737067327929,0.28205959,709.07,707.79,1.05361088]
[1737067328639,1.32343979,709.07,707.8,1.05361088]
[1737067330741,1.0413802,709.04,707.78,1.05361088]
[1737067330939,0.28207949,709.02,707.78,1.05361088]
[1737067332039,0.28207949,709.02,707.77,1.05361088]
[1737067333037,0.28207949,709.02,707.57,1.05361088]
[1737067333038,0.28207949,709.02,707.76,1.05361088]
[1737067334041,1.0413802,709.01,707.77,1.05361088]
[1737067334539,0.28209142,708.99,707.77,1.05361088]
[1737067334940,0.28209142,708.99,707.25,2.15112221]
[1737067334941,0.28209142,708.99,707.65,1.05361088]
[1737067338140,0.28209142,708.99,707.58,1.05361088]
[1737067339144,0.28209142,708.99,707.57,1.05361088]
[1737067340339,0.28209142,708.99,707.6,1.05361088]
[1737067341144,0.28209142,708.99,707.61,1.05361088]
[1737067344351,0.28209142,708.99,707.58,1.05361088]
[1737067345450,0.28209142,708.99,706.89,2.15112221]
[1737067345451,0.28209142,708.99,707.53,1.05361088]
[1737067346355,0.28209142,708.99,707.48,1.05361088]
[1737067347058,0.28209142,708.99,707.47,1.05361088]
[1737067348260,0.28209142,708.99,707.53,1.05361088]
[1737067349160,0.28209142,708.99,707.31,1.05361088]
[1737067349161,0.28209142,708.99,707.52,1.05361088]
[1737067349961,0.28209142,708.99,706.91,2.15112221]
[1737067349962,0.28209142,708.99,707.53,1.05361088]
[1737067350966,0.28209142,708.99,707.54,1.05361088]
[1737067351862,0.28209142,708.99,707.53,1.05361088]
[1737067354066,0.28209142,708.99,707.05,1.26433305]
[1737067354067,1.0413802,708.94,707.57,1.05361088]
[1737067354265,0.28211928,708.92,707.57,1.05361088]
[1737067355067,0.28211928,708.92,707.51,1.05361088]
[1737067355864,0.28211928,708.92,707.5,1.05361088]
[1737067357868,0.28211928,708.92,707.47,1.05361088]
[1737067361572,0.28211928,708.92,707.46,1.05361088]
[1737067365780,0.28211928,708.92,707.5,1.05361088]
[1737067366775,0.28211928,708.92,707.52,1.05361088]
[1737067367614,0.28211928,708.92,707.53,1.05361088]
[1737067370477,0.28211928,708.92,707.54,1.05361088]
[1737067371878,0.28211928,708.92,707.51,1.05361088]
[1737067373077,0.28211928,708.92,707.52,1.05361088]
[1737067375388,0.28211928,708.92,707.58,1.05361088]
[1737067376086,0.28211928,708.92,707.45,1.05361088]
[1737067376888,0.28211928,708.92,707.46,1.05361088]
[1737067377888,0.28211928,708.92,707.17,0.28281742]
[1737067377889,0.28211928,708.92,707.48,1.05361088]
[1737067378790,0.28211928,708.92,707.49,1.05361088]
[1737067379691,0.28211928,708.92,707.45,1.05361088]
[1737067380691,0.28211928,708.92,707.46,1.05361088]
[1737067381791,0.28211928,708.92,707.45,1.05361088]
[1737067382690,0.28211928,708.92,707.46,1.05361088]
[1737067385491,0.28211928,708.92,707.52,1.05361088]
[1737067387596,0.28211928,708.92,707.54,1.05361088]
[1737067388593,0.28211928,708.92,707.55,1.05361088]
[1737067389300,0.28211928,708.92,707.5,1.05361088]
[1737067391499,0.28211928,708.92,707.49,1.05361088]
[1737067393303,0.28211928,708.92,707.48,1.05361088]
[1737067396203,1.0413802,708.9,707.53,1.05361088]
[1737067396502,0.28213519,708.88,707.53,1.05361088]
[1737067398005,0.28213519,708.88,707.52,1.05361088]
[1737067398898,1.0413802,708.75,707.61,1.05361088]
[1737067399103,0.28219093,708.74,707.61,1.05361088]
[1737067399603,1.32357113,708.74,707.61,1.05361088]
[1737067401600,1.32357113,708.74,707.62,1.05361088]
[1737067402503,0.28219093,708.74,707.44,1.05361088]
[1737067403403,0.28219093,708.74,707.45,1.05361088]
[1737067405200,0.28219093,708.74,707.42,1.05361088]
[1737067409106,0.28219093,708.74,707.17,0.28281742]
[1737067409107,0.28219093,708.74,707.41,1.05361088]
[1737067410106,0.28219093,708.74,707.42,1.05361088]
[1737067412003,0.28219093,708.74,707.4,1.05361088]
[1737067413111,0.28219093,708.74,707.46,1.05361088]
[1737067415011,0.28219093,708.74,707.47,1.05361088]
[1737067418113,0.28219093,708.74,707.48,1.05361088]
[1737067420014,0.28219093,708.74,707.18,0.7601212]
[1737067420015,0.28219093,708.74,707.49,1.05361088]
[1737067421918,0.28219093,708.74,707.53,1.05361088]
[1737067425219,0.28219093,708.74,707.61,1.05361088]
[1737067426121,0.28219093,708.74,707.51,1.05361088]
[1737067428321,0.28219093,708.74,707.52,1.05361088]
[1737067430719,0.28219093,708.74,707.48,1.05361088]
[1737067431825,0.28219093,708.74,707.62,1.05361088]
[1737067432925,0.28219093,708.74,707.61,1.05361088]
[1737067433627,0.28219093,708.74,707.6,1.05361088]
[1737067434477,0.28219093,708.74,707.55,1.05361088]
[1737067435530,0.28219093,708.74,707.27,1.05361088]
[1737067435531,0.28219093,708.74,707.61,1.05361088]
[1737067436731,0.28219093,708.74,707.62,1.05361088]
[1737067437631,0.28219093,708.74,707.18,0.75930457]
[1737067437632,0.28219093,708.74,707.58,1.05361088]
[1737067438232,0.28219093,708.74,707.55,1.05361088]
[1737067439132,0.28219093,708.74,707.54,1.05361088]
[1737067439730,0.28219093,708.74,707.55,0.25953597]
[1737067440225,0.28219093,708.74,707.56,0.25953597]
[1737067440429,0.28219093,708.74,707.57,0.25953597]
[1737067440633,0.28219093,708.74,707.53,1.05361088]
[1737067440932,0.28219093,708.74,707.54,0.25952873]
[1737067441336,0.28219093,708.74,707.63,1.05361088]
[1737067441931,0.28219093,708.74,707.64,0.25952955]
[1737067442432,0.28219093,708.74,707.6,1.05361088]
[1737067442627,0.28219093,708.74,707.61,0.25952808]
[1737067444234,0.28219093,708.74,707.62,0.25952808]
[1737067444434,0.28219093,708.74,707.63,0.25952808]
[1737067444732,0.28219093,708.74,707.64,0.25952808]
[1737067444932,0.28219093,708.74,707.65,0.25952808]
[1737067445236,0.28219093,708.74,707.66,0.25952808]
[1737067445433,0.28219093,708.74,707.67,0.25952391]
[1737067445632,0.28219093,708.74,707.68,0.25952391]
[1737067445835,0.28219093,708.74,707.69,0.2595245]
[1737067446029,0.28219093,708.74,707.58,1.05361088]
[1737067446234,0.28219093,708.74,707.59,0.25952448]
[1737067447831,0.28219093,708.74,707.61,1.05361088]
[1737067448037,0.28219093,708.74,707.62,0.25952448]
[1737067448334,0.28219093,708.74,707.63,0.2595197]
[1737067448534,0.28219093,708.74,707.64,0.2595197]
[1737067448736,0.28219093,708.74,707.65,0.2595197]
[1737067448934,0.28219093,708.74,707.66,0.2595197]
[1737067449134,0.28219093,708.74,707.67,0.2595197]
[1737067449328,0.28219093,708.74,707.68,0.2595197]
[1737067449530,0.28219093,708.74,707.69,0.2595197]
[1737067449735,0.28219093,708.74,707.7,0.2595197]
[1737067449930,0.28219093,708.74,707.58,1.05361088]
[1737067450133,0.28219093,708.74,707.59,0.25951901]
[1737067450931,0.28219093,708.74,707.57,1.05361088]
[1737067451134,0.28219093,708.74,707.58,0.25952254]
[1737067451936,0.28219093,708.74,707.59,0.25952254]
[1737067452138,0.28219093,708.74,707.6,0.25952254]
[1737067452338,0.28219093,708.74,707.61,0.25952254]
[1737067452538,0.28219093,708.74,707.62,0.25952254]
[1737067452739,0.28219093,708.74,707.63,0.25952254]
[1737067453038,0.28219093,708.74,707.64,0.25952254]
[1737067453241,0.28219093,708.74,707.65,0.25952254]
[1737067453439,0.28219093,708.74,707.53,1.05361088]
[1737067453633,0.28219093,708.74,707.54,0.25951744]
[1737067454435,0.28219093,708.74,707.55,0.25952065]
[1737067454638,0.28219093,708.74,707.56,0.25952065]
[1737067454833,0.28219093,708.74,707.57,0.25952065]
[1737067455040,0.28219093,708.74,707.58,0.25952065]
[1737067455338,0.28219093,708.74,707.59,0.25952065]
[1737067455540,0.28219093,708.74,707.6,0.25952065]
[1737067455737,0.28219093,708.74,707.61,0.25952065]
[1737067455939,0.28219093,708.74,707.62,0.25952065]
[1737067456138,0.28219093,708.74,707.63,0.25952065]
[1737067456339,0.28219093,708.74,707.52,1.05361088]
[1737067456540,0.28219093,708.74,707.53,0.25950243]
[1737067457042,0.28219093,708.74,707.54,1.05361088]
[1737067457236,0.28219093,708.74,707.55,0.25950243]
[1737067457435,0.28219093,708.74,707.56,0.25950216]
[1737067457736,0.28219093,708.74,707.57,0.25950216]
[1737067457948,0.28219093,708.74,707.58,0.25950216]
[1737067458243,0.28219093,708.74,707.54,1.05361088]
[1737067458244,0.28219093,708.74,707.59,0.25950216]
[1737067458440,0.28219093,708.74,707.6,0.25950216]
[1737067458639,0.28219093,708.74,707.54,1.05361088]
[1737067458835,0.28219093,708.74,707.55,0.25950995]
[1737067459343,0.28219093,708.74,707.52,1.05361088]
[1737067459641,0.28219093,708.74,707.53,0.25950019]
[1737067460438,0.28219093,708.74,707.59,1.05361088]
[1737067460641,0.28219093,708.74,707.6,0.25950019]
[1737067461542,0.28219093,708.74,707.67,1.05361088]
[1737067461738,0.28219093,708.74,707.68,0.25950019]
[1737067462337,0.28219093,708.74,707.69,1.05361088]
[1737067462537,0.28219093,708.74,707.7,0.25950019]
[1737067462740,0.28219093,708.74,707.69,1.05361088]
[1737067462936,0.28219093,708.74,707.7,0.25949808]
[1737067463243,0.28219093,708.74,707.71,1.05361088]
[1737067463435,0.28219093,708.74,707.72,0.25949808]
[1737067464045,0.28219093,708.74,707.74,1.05361088]
[1737067465442,0.28219093,708.74,707.7,1.05361088]
[1737067466346,0.28219093,708.74,707.71,1.05361088]
[1737067466946,0.28219093,708.74,707.18,0.75775279]
[1737067466947,0.28219093,708.74,707.72,1.05361088]
[1737067468243,0.28219093,708.74,707.71,1.05361088]
[1737067469342,0.28219093,708.74,707.74,1.05361088]
[1737067470344,0.28219093,708.74,707.75,1.05361088]
[1737067471247,0.28219093,708.74,707.76,1.05361088]
[1737067473247,0.28219093,708.74,707.77,1.05361088]
[1737067474249,0.28219093,708.74,707.79,1.05361088]
[1737067475248,0.28219093,708.74,707.75,1.05361088]
[1737067475951,0.28219093,708.74,707.76,1.05361088]
[1737067477148,0.28219093,708.74,707.75,1.05361088]
[1737067478045,0.28219093,708.74,707.76,1.05361088]
[1737067479051,0.28219093,708.74,707.77,1.05361088]
[1737067480151,0.28219093,708.74,707.76,1.05361088]
[1737067481042,0.28219093,708.74,707.75,1.05361088]
[1737067481744,0.28219093,708.74,707.73,1.05361088]
[1737067483945,0.28219093,708.74,707.18,0.75775279]
[1737067483946,0.28219093,708.74,707.74,1.05361088]
[1737067484950,0.28219093,708.74,707.85,1.05361088]
[1737067486047,0.28219093,708.74,707.83,1.05361088]
[1737067488052,0.28219093,708.74,707.84,1.05361088]
[1737067488749,0.28219093,708.74,707.83,1.05361088]
[1737067490750,0.28219093,708.74,707.86,1.05361088]
[1737067493455,0.28219093,708.74,707.87,1.05361088]
[1737067494955,0.28219093,708.74,707.89,1.05361088]
[1737067495957,0.28219093,708.74,707.91,1.05361088]
[1737067496657,0.28219093,708.74,707.86,1.05361088]
[1737067497458,0.28219093,708.74,707.85,1.05361088]
[1737067498459,0.28219093,708.74,707.87,1.05361088]
[1737067499463,0.28219093,708.74,707.88,1.05361088]
[1737067500463,0.28219093,708.74,707.86,1.05361088]
[1737067501364,0.28219093,708.74,707.88,1.05361088]
[1737067502264,0.28219093,708.74,707.24,2.15112221]
[1737067502265,0.28219093,708.74,707.87,1.05361088]
[1737067503267,0.28219093,708.74,707.88,1.05361088]
[1737067505066,0.28219093,708.74,707.92,1.05361088]
[1737067506061,0.28219093,708.74,707.62,1.05361088]
[1737067506062,0.28219093,708.74,707.93,1.05361088]
[1737067507069,0.28219093,708.74,707.63,1.05361088]
[1737067507967,0.28219093,708.74,706.9,1.26433305]
[1737067507968,0.28219093,708.74,707.54,1.05361088]
[1737067509768,0.28219093,708.74,707.53,1.05361088]
[1737067510767,0.28219093,708.74,707.54,1.05361088]
[1737067511669,0.28219093,708.74,707.55,1.05361088]
[1737067514571,0.28219093,708.74,707.53,1.05361088]
[1737067515573,0.28219093,708.74,707.54,1.05361088]
[1737067516768,0.28219093,708.74,707.64,1.05361088]
[1737067517772,0.28219093,708.74,707.62,1.05361088]
[1737067518874,0.28219093,708.74,707.22,1.33640831]
[1737067518875,0.28219093,708.74,707.61,1.05361088]
[1737067521779,0.28219093,708.74,707.6,1.05361088]
[1737067522675,0.28219093,708.74,707.61,1.05361088]
[1737067524374,0.28219093,708.74,707.23,0.75892813]
[1737067524375,0.28219093,708.74,707.63,1.05361088]
[1737067525281,0.28219093,708.74,707.6,1.05361088]
[1737067526380,0.28219093,708.74,707.23,1.81253901]
[1737067526381,0.28219093,708.74,707.64,1.05361088]
[1737067527379,0.28219093,708.74,707.62,1.05361088]
[1737067529378,0.28219093,708.74,707.23,0.75892813]
[1737067529379,0.28219093,708.74,707.59,1.05361088]
[1737067530580,0.28219093,708.74,707.6,1.05361088]
[1737067531479,0.28219093,708.74,707.61,1.05361088]
[1737067532276,0.28219093,708.74,707.62,1.05361088]
[1737067534382,0.28219093,708.74,707.37,1.05361088]
[1737067535478,0.28219093,708.74,707.22,1.33640831]
[1737067536285,0.28219093,708.74,707.22,0.28279743]
[1737067539289,0.28219093,708.74,707.23,0.2596706]
[1737067540685,0.28219093,708.74,707.26,1.05361088]
[1737067541992,0.28219093,708.74,707.22,0.28279743]
[1737067542289,0.28219093,708.74,707.23,0.25968209]
[1737067544691,0.28219093,708.74,707.24,0.25968099]
[1737067544890,0.28219093,708.74,707.22,0.28279743]
[1737067545094,0.28219093,708.74,707.23,0.25968248]
[1737067545293,0.28219093,708.74,707.22,0.28279743]
[1737067545496,0.28219093,708.74,707.23,0.25968375]
[1737067547392,0.28219093,708.74,707.22,0.28279743]
[1737067547595,0.28219093,708.74,707.23,0.25968214]
[1737067550292,0.28219093,708.74,707.24,0.25968686]
[1737067550593,0.28219093,708.74,707.25,0.25968686]
[1737067550898,0.28219093,708.74,707.26,0.25968686]
[1737067551196,0.28219093,708.74,707.27,0.25968686]
[1737067551496,0.28219093,708.74,707.28,0.25968686]
[1737067551693,0.28219093,708.74,707.29,0.25968686]
[1737067551891,0.28219093,708.74,707.22,0.28279743]
[1737067551892,0.28219093,708.74,707.3,0.25968686]
[1737067552095,0.28219093,708.74,707.31,0.25968686]
[1737067552296,0.28219093,708.74,707.22,0.28279743]
[1737067552495,0.28219093,708.74,707.23,0.25968925]
[1737067553098,0.28219093,708.74,707.24,0.25968925]
[1737067553297,0.28219093,708.74,707.25,0.25968925]
[1737067553498,0.28219093,708.74,707.26,0.25968925]
[1737067553700,0.28219093,708.74,707.27,0.25968772]
[1737067553899,0.28219093,708.74,707.28,0.25968772]
[1737067554099,0.28219093,708.74,707.22,0.28279743]
[1737067554100,0.28219093,708.74,707.29,0.25968772]
[1737067554402,0.28219093,708.74,707.22,0.28279743]
[1737067558004,0.28219093,708.74,706.75,1.05361088]
[1737067558204,0.28219093,708.74,706.77,1.05361088]
[1737067558401,0.28219093,708.74,706.78,0.54271876]
[1737067558609,0.28219093,708.74,706.79,0.54271307]
[1737067558902,0.28219093,708.74,706.8,0.54270906]
[1737067559104,0.28219093,708.74,706.81,0.54270506]
[1737067559304,0.28219093,708.74,706.77,1.05361088]
[1737067559305,0.28219093,708.74,706.82,0.54270106]
[1737067559506,0.28219093,708.74,706.83,0.54269705]
[1737067559804,0.28219093,708.74,706.84,0.25974359]
[1737067560206,0.28219093,708.74,706.89,1.05361088]
[1737067560407,0.28219093,708.74,706.9,0.25974359]
[1737067561006,0.28219093,708.74,706.91,0.25975544]
[1737067561201,0.28219093,708.74,706.92,0.25975544]
[1737067561506,0.28219093,708.74,706.93,0.25975544]
[1737067561705,0.28219093,708.74,706.94,0.25975544]
[1737067561901,0.28219093,708.74,706.95,0.25975544]
[1737067562106,0.28219093,708.74,706.96,0.25975544]
[1737067562306,0.28219093,708.74,706.93,1.05361088]
[1737067562307,0.28219093,708.74,706.97,0.25975544]
[1737067562501,0.28219093,708.74,706.98,0.25975544]
[1737067562701,0.28219093,708.74,706.99,0.25975544]
[1737067562902,0.28219093,708.74,707.0,0.25975544]
[1737067563103,0.28219093,708.74,707.01,0.25975544]
[1737067563305,0.28219093,708.74,706.94,0.25975544]
[1737067563502,0.28219093,708.74,706.95,0.25975544]
[1737067563705,0.28219093,708.74,706.96,0.25975544]
[1737067563910,0.28219093,708.74,706.97,0.25975544]
[1737067564106,0.28219093,708.74,706.98,0.25975544]
[1737067564307,0.28219093,708.74,706.99,0.25975544]
[1737067564610,0.28219093,708.74,706.94,1.05361088]
[1737067564803,0.28219093,708.74,706.95,0.25978238]
[1737067566009,0.28219093,708.74,706.96,0.25978743]
[1737067566209,0.28219093,708.74,706.97,0.25978743]
[1737067566510,0.28219093,708.74,706.98,0.25978743]
[1737067566703,0.28219093,708.74,706.99,0.25978743]
[1737067566903,1.0413802,708.71,706.92,1.05361088]
[1737067567104,1.0413802,708.71,706.93,0.25979236]
[1737067567410,0.28221083,708.69,706.92,1.05361088]
[1737067567807,1.0413802,708.68,706.92,1.05361088]
[1737067568008,0.28222278,708.66,706.92,1.05361088]
[1737067569006,0.28222278,708.66,706.33,2.15112221]
[1737067569007,0.28222278,708.66,706.55,1.05361088]
[1737067570102,0.28222278,708.66,706.48,1.05361088]
[1737067570304,0.28222278,708.66,706.49,0.25985821]
[1737067571509,0.28222278,708.66,706.5,0.25985821]